fUSD/lending_fUSD_20240628
["ID","MTS","AMOUNT","RATE_DAILY","PERIOD"]
[330572192,1719581478213,-1443.4,0.00021972,3]
[330572193,1719581478222,-6645.26,0.00021972,3]
[330572194,1719581478231,-837.56,0.00021972,3]
[330572195,1719581478240,-2111.56,0.00021972,3]
[330572196,1719581478249,-1244.64,0.00021972,3]
[330572197,1719581478258,-645.54,0.00021972,3]
[330572198,1719581478267,-1835.87,0.00021972,3]
[330572199,1719581478277,-1450.85,0.00021972,3]
[330572200,1719581478287,-500.0,0.00021972,3]
[330572201,1719581478296,-500.0,0.00021972,3]
[330572202,1719581478308,-2439.85,0.00021972,3]
[330572203,1719581478317,-702.47,0.00021972,3]
[330572204,1719581478329,-1096.06,0.00021972,3]
[330572205,1719581478339,-598.44,0.00021972,3]
[330572206,1719581478349,-2014.08,0.00021972,3]
[330572207,1719581478359,-500.0,0.00021972,3]
[330572208,1719581478368,-1770.49,0.00021972,3]
[330572209,1719581478377,-500.0,0.00021972,3]
[330572210,1719581478388,-2164.99,0.00021972,3]
[330572211,1719581478397,-5010.18,0.00021972,3]
[330572212,1719581478406,-500.0,0.00021972,3]
[330572213,1719581478419,-1514.61,0.00021972,3]
[330572214,1719581478428,-500.0,0.00021972,3]
[330572215,1719581478437,-500.0,0.00021972,3]
[330572216,1719581478447,-1634.2,0.00021972,3]
[330572217,1719581478455,-981.91,0.00021972,3]
[330572218,1719581478465,-1972.11,0.00021972,3]
[330572219,1719581478474,-1289.86,0.00021972,3]
[330572220,1719581478483,-500.0,0.00021972,3]
[330572221,1719581478495,-1872.23,0.00021972,3]
[330572222,1719581478506,-610.96380372,0.00021972,3]
[330572223,1719581478515,-500.0,0.00021972,3]
[330572224,1719581478524,-957.61,0.00021972,3]
[330572225,1719581478534,-689.93,0.00021972,3]
[330572226,1719581478544,-500.0,0.00021972,3]
[330572227,1719581478556,-1346.02,0.00021972,3]
[330572228,1719581478566,-8319.76,0.00021972,3]
[330572229,1719581478575,-1937.52,0.00021972,3]
[330572230,1719581478584,-564.83,0.00021972,3]
[330572231,1719581478594,-500.0,0.00021972,3]
[330572232,1719581478603,-1314.55,0.00021972,3]
[330572233,1719581478613,-500.0,0.00021972,3]
[330572234,1719581478622,-2235.79,0.00021972,3]
[330572235,1719581478632,-1278.6,0.00021972,3]
[330572236,1719581478642,-500.0,0.00021972,3]
[330572237,1719581478651,-500.0,0.00021972,3]
[330572238,1719581478660,-1157.09,0.00021972,3]
[330572239,1719581478670,-5355.41,0.00021972,3]
[330572240,1719581478679,-1730.25,0.00021972,3]
[330572241,1719581478688,-500.0,0.00021972,3]
[330572242,1719581478697,-2443.33,0.00021972,3]
[330572243,1719581478707,-500.0,0.00021972,3]
[330572244,1719581478716,-500.0,0.00021972,3]
[330572245,1719581478725,-500.0,0.00021972,3]
[330572246,1719581478734,-500.0,0.00021972,3]
[330572247,1719581478744,-500.0,0.00021972,3]
[330572248,1719581478754,-556.53,0.00021972,3]
[330572249,1719581478763,-1941.38,0.00021972,3]
[330572250,1719581478772,-2413.29,0.00021972,3]
[330572251,1719581478781,-500.0,0.00021972,3]
[330572252,1719581478790,-693.2,0.00021972,3]
[330572253,1719581478799,-5956.58,0.00021972,3]
[330572254,1719581478811,-1765.52,0.00021972,3]
[330572255,1719581478820,-500.0,0.00021972,3]
[330572256,1719581478829,-802.57,0.00021972,3]
[330572257,1719581478839,-500.0,0.00021972,3]
[330572258,1719581478848,-500.0,0.00021972,3]
[330572259,1719581478858,-500.0,0.00021972,3]
[330572260,1719581478867,-917.75,0.00021972,3]
[330572261,1719581478877,-1339.62,0.00021972,3]
[330572262,1719581478886,-500.0,0.00021972,3]
[330572263,1719581478895,-500.0,0.00021972,3]
[330572264,1719581478905,-203.18937169,0.00021972,3]
[330572265,1719581478914,-500.0,0.00021972,3]
[330572266,1719581478923,-500.0,0.00021972,3]
[330572267,1719581478933,-500.0,0.00021972,3]
[330572268,1719581478943,-500.0,0.00021972,3]
[330572269,1719581478952,-1738.31,0.00021972,3]
[330572270,1719581478962,-559.59419054,0.00021972,2]
[330572271,1719581478971,-5728.45,0.00021972,3]
[330572272,1719581478981,-1513.95,0.00021972,3]
[330572273,1719581478990,-1400.67,0.00021972,3]
[330572274,1719581479000,-500.0,0.00021972,3]
[330572275,1719581479011,-1314.72,0.00021972,3]
[330572276,1719581479021,-2631.35,0.00021972,3]
[330572277,1719581479030,-1222.24,0.00021972,3]
[330572278,1719581479040,-2245.26,0.00021972,3]
[330572279,1719581479049,-500.0,0.00021972,3]
[330572280,1719581479064,-500.0,0.00021972,3]
[330572281,1719581479073,-500.0,0.00021972,3]
[330572282,1719581479085,-500.0,0.00021972,3]
[330572283,1719581479095,-500.0,0.00021972,3]
[330572284,1719581479105,-1528.39,0.00021972,3]
[330572285,1719581479116,-500.0,0.00021972,3]
[330572286,1719581479126,-500.0,0.00021972,3]
[330572287,1719581479139,-500.0,0.00021972,3]
[330572288,1719581479148,-1763.94,0.00021972,3]
[330572289,1719581479158,-500.0,0.00021972,3]
[330572290,1719581479168,-500.0,0.00021972,3]
[330572291,1719581479177,-800.36,0.00021972,3]
[330572292,1719581479186,-500.0,0.00021972,3]
[330572293,1719581479196,-500.0,0.00021972,3]
[330572294,1719581479205,-3244.69,0.00021972,3]
[330572295,1719581479214,-552.11,0.00021972,3]
[330572296,1719581479223,-1921.96,0.00021972,3]
[330572297,1719581479232,-500.0,0.00021972,3]
[330572298,1719581479241,-1343.31,0.00021972,3]
[330572299,1719581479250,-929.24,0.00021972,3]
[330572300,1719581479262,-500.0,0.00021972,3]
[330572301,1719581479272,-500.0,0.00021972,3]
[330572302,1719581479282,-500.0,0.00021972,3]
[330572303,1719581479292,-500.0,0.00021972,3]
[330572304,1719581479302,-500.0,0.00021972,3]
[330572305,1719581479316,-500.0,0.00021972,3]
[330572306,1719581479325,-500.0,0.00021972,3]
[330572307,1719581479335,-500.0,0.00021972,3]
[330572308,1719581479344,-649.79,0.00021972,3]
[330572309,1719581479354,-500.0,0.00021972,3]
[330572310,1719581479365,-500.0,0.00021972,3]
[330572311,1719581479374,-500.0,0.00021972,3]
[330572312,1719581479384,-500.0,0.00021972,3]
[330572313,1719581479394,-1120.02,0.00021972,3]
[330572314,1719581479404,-1560.26,0.00021972,3]
[330572315,1719581479414,-598.91,0.00021972,3]
[330572316,1719581479427,-500.0,0.00021972,3]
[330572317,1719581479436,-500.0,0.00021972,3]
[330572318,1719581479446,-5400.35,0.00021972,3]
[330572319,1719581479457,-1200.47,0.00021972,3]
[330572320,1719581479467,-728.32,0.00021972,3]
[330572321,1719581479476,-500.0,0.00021972,3]
[330572322,1719581479486,-500.0,0.00021972,3]
[330572323,1719581479497,-500.0,0.00021972,3]
[330572324,1719581479506,-500.0,0.00021972,3]
[330572325,1719581479515,-998.61,0.00021972,3]
[330572326,1719581479525,-500.0,0.00021972,3]
[330572327,1719581479534,-1334.59,0.00021972,3]
[330572328,1719581479543,-500.0,0.00021972,3]
[330572329,1719581479552,-654.9,0.00021972,3]
[330572330,1719581479565,-1106.63,0.00021972,3]
[330572331,1719581479574,-500.0,0.00021972,3]
[330572332,1719581479583,-2113.23,0.00021972,3]
[330572333,1719581479592,-4276.13,0.00021972,3]
[330572334,1719581479601,-1151.1,0.00021972,3]
[330572335,1719581479609,-3108.49,0.00021972,3]
[330572336,1719581479618,-500.0,0.00021972,3]
[330572337,1719581479628,-539.26,0.00021972,2]
[330572338,1719581479637,-768.64,0.00021972,3]
[330572339,1719581479650,-500.0,0.00021972,3]
[330572340,1719581479660,-654.34,0.00021972,3]
[330572341,1719581479669,-3646.44,0.00021972,3]
[330572342,1719581479679,-2939.82,0.00021972,3]
[330572343,1719581479688,-1859.66,0.00021972,3]
[330572344,1719581479697,-500.0,0.00021972,3]
[330572345,1719581479706,-500.0,0.00021972,3]
[330572346,1719581479715,-500.0,0.00021972,3]
[330572347,1719581479724,-9771.66,0.00021972,3]
[330572348,1719581479733,-500.0,0.00021972,3]
[330572349,1719581479742,-500.0,0.00021972,3]
[330572350,1719581479752,-541.59,0.00021972,3]
[330572351,1719581479762,-1364.96,0.00021972,3]
[330572352,1719581479771,-655.09,0.00021972,3]
[330572353,1719581479780,-500.0,0.00021972,3]
[330572354,1719581479789,-1000.0,0.00021972,3]
[330572355,1719581479799,-541.6,0.00021972,3]
[330572356,1719581479810,-1563.36,0.00021972,3]
[330572357,1719581479820,-500.0,0.00021972,3]
[330572358,1719581479829,-2735.37,0.00021972,3]
[330572359,1719581479839,-1103.89,0.00021972,3]
[330572360,1719581479848,-668.34,0.00021972,3]
[330572361,1719581479857,-1059.29,0.00021972,3]
[330572362,1719581479866,-25237.64,0.00021972,3]
[330572363,1719581479875,-636.11,0.00021972,3]
[330572364,1719581479886,-504.83,0.00021972,3]
[330572365,1719581479895,-1992.19,0.00021972,3]
[330572366,1719581479904,-500.0,0.00021972,3]
[330572367,1719581479913,-500.0,0.00021972,3]
[330572368,1719581479922,-6713.67,0.00021972,3]
[330572369,1719581479931,-1356.54,0.00021972,3]
[330572370,1719581479940,-3359.48,0.00021972,3]
[330572371,1719581479949,-523.28,0.00021972,3]
[330572372,1719581479958,-1204.58,0.00021972,3]
[330572373,1719581479967,-21752.02,0.00021972,3]
[330572374,1719581479977,-796.18,0.00021972,3]
[330572375,1719581479986,-500.0,0.00021972,3]
[330572376,1719581479995,-802.68,0.00021972,3]
[330572377,1719581480005,-500.0,0.00021972,3]
[330572378,1719581480015,-500.0,0.00021972,3]
[330572379,1719581480024,-500.0,0.00021972,3]
[330572380,1719581480034,-1788.91,0.00021972,3]
[330572381,1719581480044,-500.0,0.00021972,3]
[330572382,1719581480054,-500.0,0.00021972,3]
[330572383,1719581480064,-500.0,0.00021972,3]
[330572384,1719581480073,-500.0,0.00021972,3]
[330572385,1719581480082,-908.57,0.00021972,3]
[330572386,1719581480093,-500.0,0.00021972,3]
[330572387,1719581480103,-938.69,0.00021972,3]
[330572388,1719581480113,-636.84,0.00021972,3]
[330572389,1719581480123,-1580.02,0.00021972,3]
[330572390,1719581480132,-1252.43,0.00021972,3]
[330572391,1719581480142,-500.0,0.00021972,3]
[330572392,1719581480151,-500.0,0.00021972,3]
[330572393,1719581480161,-1312.18,0.00021972,3]
[330572394,1719581480171,-1369.47,0.00021972,3]
[330572395,1719581480180,-500.0,0.00021972,3]
[330572396,1719581480190,-2463.28,0.00021972,3]
[330572397,1719581480199,-36919.91,0.00021972,3]
[330572398,1719581480335,-1025.73,0.00021972,3]
[330572399,1719581480360,-2433.82,0.00021972,3]
[330572400,1719581480369,-646.24,0.00021972,3]
[330572401,1719581480379,-1916.06,0.00021972,3]
[330572402,1719581480388,-887.74,0.00021972,3]
[330572403,1719581480398,-500.0,0.00021972,3]
[330572404,1719581480410,-3562.83,0.00021972,3]
[330572405,1719581480421,-500.0,0.00021972,3]
[330572406,1719581480431,-500.0,0.00021972,3]
[330572407,1719581480440,-500.0,0.00021972,3]
[330572408,1719581480449,-500.0,0.00021972,3]
[330572409,1719581480461,-500.0,0.00021972,3]
[330572410,1719581480471,-500.0,0.00021972,3]
[330572411,1719581480482,-1329.94,0.00021972,3]
[330572412,1719581480491,-4426.91,0.00021972,3]
[330572413,1719581480503,-1636.65,0.00021972,3]
[330572414,1719581480512,-500.0,0.00021972,3]
[330572415,1719581480522,-978.9,0.00021972,3]
[330572416,1719581480532,-2701.18,0.00021972,3]
[330572417,1719581480542,-517.08,0.00021972,3]
[330572418,1719581480553,-1919.6,0.00021972,3]
[330572419,1719581480564,-500.0,0.00021972,3]
[330572420,1719581480573,-500.0,0.00021972,3]
[330572421,1719581480583,-693.54,0.00021972,3]
[330572422,1719581480592,-500.0,0.00021972,3]
[330572423,1719581480602,-1449.29,0.00021972,3]
[330572424,1719581480611,-500.0,0.00021972,3]
[330572425,1719581480620,-500.0,0.00021972,3]
[330572426,1719581480630,-1102.19,0.00021972,3]
[330572427,1719581480640,-500.0,0.00021972,3]
[330572428,1719581480650,-500.0,0.00021972,3]
[330572429,1719581480659,-1430.68,0.00021972,3]
[330572430,1719581480668,-2848.33,0.00021972,3]
[330572431,1719581480678,-1019.91,0.00021972,3]
[330572432,1719581480688,-500.0,0.00021972,3]
[330572433,1719581480698,-1181.56,0.00021972,3]
[330572434,1719581480708,-1282.69,0.00021972,3]
[330572435,1719581480717,-500.0,0.00021972,3]
[330572436,1719581480727,-500.0,0.00021972,3]
[330572437,1719581480736,-500.0,0.00021972,3]
[330572438,1719581480746,-1785.99,0.00021972,3]
[330572439,1719581480755,-500.0,0.00021972,3]
[330572440,1719581480764,-5000.33,0.00021972,3]
[330572441,1719581480773,-4271.25,0.00021972,3]
[330572442,1719581480783,-767.84,0.00021972,3]
[330572443,1719581480794,-2193.02,0.00021972,3]
[330572444,1719581480803,-652.49,0.00021972,3]
[330572445,1719581480817,-3503.06,0.00021972,3]
[330572446,1719581480826,-500.0,0.00021972,3]
[330572447,1719581480836,-500.0,0.00021972,3]
[330572448,1719581480845,-500.0,0.00021972,3]
[330572449,1719581480856,-500.0,0.00021972,3]
[330572450,1719581480866,-500.0,0.00021972,3]
[330572451,1719581480876,-500.0,0.00021972,3]
[330572452,1719581480885,-500.0,0.00021972,3]
[330572453,1719581480895,-1274.48,0.00021972,3]
[330572454,1719581480905,-500.0,0.00021972,3]
[330572455,1719581480915,-1581.17,0.00021972,3]
[330572456,1719581480924,-1618.75,0.00021972,3]
[330572457,1719581480934,-996.41,0.00021972,3]
[330572458,1719581480943,-1841.29,0.00021972,3]
[330572459,1719581480953,-500.0,0.00021972,3]
[330572460,1719581480962,-500.0,0.00021972,3]
[330572461,1719581480972,-500.0,0.00021972,3]
[330572462,1719581480981,-500.0,0.00021972,3]
[330572463,1719581480990,-500.0,0.00021972,3]
[330572464,1719581480999,-697.65,0.00021972,3]
[330572465,1719581481009,-3537.29,0.00021972,3]
[330572466,1719581481018,-1692.25,0.00021972,3]
[330572467,1719581481028,-500.0,0.00021972,3]
[330572468,1719581481037,-500.0,0.00021972,3]
[330572469,1719581481046,-500.0,0.00021972,3]
[330572470,1719581481058,-3666.39,0.00021972,3]
[330572471,1719581481067,-684.37,0.00021972,3]
[330572472,1719581481077,-727.75,0.00021972,3]
[330572473,1719581481086,-1245.71,0.00021972,3]
[330572474,1719581481096,-7652.4,0.00021972,3]
[330572475,1719581481106,-500.0,0.00021972,3]
[330572476,1719581481115,-527.84,0.00021972,3]
[330572477,1719581481125,-760.87,0.00021972,3]
[330572478,1719581481135,-1216.62,0.00021972,3]
[330572479,1719581481144,-500.0,0.00021972,3]
[330572480,1719581481154,-792.38,0.00021972,3]
[330572481,1719581481163,-1797.28,0.00021972,3]
[330572482,1719581481172,-500.0,0.00021972,3]
[330572483,1719581481182,-541.45,0.00021972,3]
[330572484,1719581481191,-500.0,0.00021972,3]
[330572485,1719581481201,-500.0,0.00021972,3]
[330572486,1719581481210,-500.0,0.00021972,3]
[330572487,1719581481219,-6246.5,0.00021972,3]
[330572488,1719581481231,-500.0,0.00021972,3]
[330572489,1719581481242,-500.0,0.00021972,3]
[330572490,1719581481253,-5615.75,0.00021972,3]
[330572491,1719581481263,-1194.1,0.00021972,3]
[330572492,1719581481272,-949.96,0.00021972,3]
[330572493,1719581481282,-4369.89,0.00021972,3]
[330572494,1719581481291,-500.0,0.00021972,3]
[330572495,1719581481300,-2742.28,0.00021972,3]
[330572496,1719581481313,-2195.07,0.00021972,3]
[330572497,1719581481322,-500.0,0.00021972,3]
[330572498,1719581481331,-2088.38,0.00021972,3]
[330572499,1719581481341,-500.0,0.00021972,3]
[330572500,1719581481351,-1879.2,0.00021972,3]
[330572501,1719581481360,-3608.45,0.00021972,3]
[330572502,1719581481370,-500.0,0.00021972,3]
[330572503,1719581481379,-500.0,0.00021972,3]
[330572504,1719581481388,-1432.87,0.00021972,3]
[330572505,1719581481398,-832.85,0.00021972,3]
[330572506,1719581481409,-5733.59,0.00021972,3]
[330572507,1719581481419,-1436.46,0.00021972,3]
[330572508,1719581481429,-1129.35,0.00021972,3]
[330572509,1719581481439,-500.0,0.00021972,3]
[330572510,1719581481450,-4106.02,0.00021972,3]
[330572511,1719581481460,-1538.17,0.00021972,3]
[330572512,1719581481470,-1292.24,0.00021972,3]
[330572513,1719581481480,-554.34439639,0.00021972,3]
[330572514,1719581481492,-500.0,0.00021972,3]
[330572515,1719581481502,-500.0,0.00021972,3]
[330572516,1719581481512,-1438.55,0.00021972,3]
[330572517,1719581481522,-3578.49,0.00021972,3]
[330572518,1719581481531,-500.0,0.00021972,3]
[330572519,1719581481542,-500.0,0.00021972,3]
[330572520,1719581481552,-500.0,0.00021972,3]
[330572521,1719581481566,-2567.92,0.00021972,3]
[330572522,1719581481576,-500.0,0.00021972,3]
[330572523,1719581481585,-936.48,0.00021972,3]
[330572524,1719581481595,-2949.05,0.00021972,3]
[330572525,1719581481604,-602.03,0.00021972,3]
[330572526,1719581481614,-500.0,0.00021972,3]
[330572527,1719581481624,-1391.57,0.00021972,3]
[330572528,1719581481633,-500.0,0.00021972,3]
[330572529,1719581481643,-500.0,0.00021972,3]
[330572530,1719581481653,-500.0,0.00021972,3]
[330572531,1719581481663,-3090.23,0.00021972,3]
[330572532,1719581481672,-6037.16,0.00021972,3]
[330572533,1719581481682,-521.65,0.00021972,3]
[330572534,1719581481691,-1172.73,0.00021972,3]
[330572535,1719581481702,-1345.72,0.00021972,3]
[330572536,1719581481712,-653.49,0.00021972,3]
[330572537,1719581481721,-518.74,0.00021972,3]
[330572538,1719581481731,-500.0,0.00021972,3]
[330572539,1719581481740,-2094.28,0.00021972,3]
[330572540,1719581481750,-2152.58,0.00021972,3]
[330572541,1719581481760,-1191.41,0.00021972,3]
[330572542,1719581481769,-500.0,0.00021972,3]
[330572543,1719581481779,-7086.03,0.00021972,3]
[330572544,1719581481788,-899.61,0.00021972,3]
[330572545,1719581481799,-500.0,0.00021972,3]
[330572546,1719581481810,-803.71,0.00021972,3]
[330572547,1719581481820,-2168.12,0.00021972,3]
[330572548,1719581481829,-500.0,0.00021972,3]
[330572549,1719581481839,-4714.4,0.00021972,3]
[330572550,1719581481849,-4219.59,0.00021972,3]
[330572551,1719581481858,-10699.08,0.00021972,3]
[330572552,1719581481868,-500.0,0.00021972,3]
[330572553,1719581481878,-1919.85,0.00021972,3]
[330572554,1719581481887,-1834.2,0.00021972,3]
[330572555,1719581481897,-1504.71,0.00021972,3]
[330572556,1719581481907,-1158.28,0.00021972,3]
[330572557,1719581481916,-1215.12,0.00021972,3]
[330572558,1719581481926,-500.0,0.00021972,3]
[330572559,1719581481936,-500.0,0.00021972,3]
[330572560,1719581481946,-4704.3,0.00021972,3]
[330572561,1719581481955,-2086.55,0.00021972,3]
[330572562,1719581481965,-500.0,0.00021972,3]
[330572563,1719581481974,-500.0,0.00021972,3]
[330572564,1719581481984,-2978.02,0.00021972,3]
[330572565,1719581481993,-500.0,0.00021972,3]
[330572566,1719581482003,-2920.68,0.00021972,3]
[330572567,1719581482013,-1218.92,0.00021972,3]
[330572568,1719581482022,-647.51,0.00021972,3]
[330572569,1719581482032,-922.33,0.00021972,3]
[330572570,1719581482041,-500.0,0.00021972,3]
[330572571,1719581482051,-662.35,0.00021972,3]
[330572572,1719581482062,-642.07,0.00021972,3]
[330572573,1719581482072,-1519.66,0.00021972,3]
[330572574,1719581482081,-914.28,0.00021972,3]
[330572575,1719581482091,-2983.21,0.00021972,3]
[330572576,1719581482102,-500.0,0.00021972,3]
[330572577,1719581482112,-1264.93,0.00021972,3]
[330572578,1719581482122,-1929.5,0.00021972,3]
[330572579,1719581482133,-1030.03,0.00021972,3]
[330572580,1719581482143,-2178.19,0.00021972,3]
[330572581,1719581482152,-5319.8,0.00021972,3]
[330572582,1719581482161,-4628.83,0.00021972,3]
[330572583,1719581482170,-500.0,0.00021972,3]
[330572584,1719581482180,-500.0,0.00021972,3]
[330572585,1719581482189,-500.0,0.00021972,3]
[330572586,1719581482198,-500.0,0.00021972,3]
[330572587,1719581482208,-93892.23,0.00021972,3]
[330572588,1719581482217,-4310.82,0.00021972,3]
[330572589,1719581482227,-500.0,0.00021972,3]
[330572590,1719581482237,-566.22,0.00021972,3]
[330572591,1719581482247,-1460.26,0.00021972,3]
[330572592,1719581482256,-1849.37,0.00021972,3]
[330572593,1719581482266,-251.11,0.00021972,7]
[330572594,1719581482275,-500.0,0.00021972,2]
[330572595,1719581482284,-500.0,0.00021972,3]
[330572596,1719581482294,-500.0,0.00021972,3]
[330572597,1719581482304,-16414.95,0.00021972,3]
[330572598,1719581482315,-2405.17,0.00021972,3]
[330572599,1719581482324,-583.96,0.00021972,3]
[330572600,1719581482334,-500.0,0.00021972,3]
[330572601,1719581482343,-500.0,0.00021972,3]
[330572602,1719581482352,-500.0,0.00021972,3]
[330572603,1719581482362,-1544.52,0.00021972,3]
[330572604,1719581482371,-500.0,0.00021972,3]
[330572605,1719581482381,-500.0,0.00021972,3]
[330572606,1719581482390,-1841.1,0.00021972,3]
[330572607,1719581482400,-500.0,0.00021972,3]
[330572608,1719581482410,-808.69,0.00021972,3]
[330572609,1719581482424,-500.0,0.00021972,3]
[330572610,1719581482434,-559.42,0.00021972,3]
[330572611,1719581482444,-500.0,0.00021972,3]
[330572612,1719581482455,-785.91,0.00021972,3]
[330572613,1719581482464,-500.0,0.00021972,3]
[330572614,1719581482474,-538.09,0.00021972,3]
[330572615,1719581482483,-3690.59,0.00021972,3]
[330572616,1719581482860,-4945.54,0.00021972,3]
[330572617,1719581482870,-500.0,0.00021972,3]
[330572618,1719581482880,-5027.37,0.00021972,3]
[330572619,1719581482890,-500.0,0.00021972,3]
[330572620,1719581482900,-500.0,0.00021972,3]
[330572621,1719581482909,-898.52,0.00021972,3]
[330572622,1719581482920,-1763.07,0.00021972,3]
[330572623,1719581482929,-1768.49,0.00021972,3]
[330572624,1719581482939,-1375.73,0.00021972,3]
[330572625,1719581482949,-500.0,0.00021972,3]
[330572626,1719581482959,-500.0,0.00021972,3]
[330572627,1719581482969,-500.0,0.00021972,3]
[330572628,1719581482979,-1778.25,0.00021972,3]
[330572629,1719581482990,-500.0,0.00021972,3]
[330572630,1719581483000,-1290.1,0.00021972,3]
[330572631,1719581483009,-1517.24,0.00021972,3]
[330572632,1719581483018,-1434.18,0.00021972,3]
[330572633,1719581483027,-500.0,0.00021972,3]
[330572634,1719581483037,-3187.95,0.00021972,3]
[330572635,1719581483047,-7466.19,0.00021972,3]
[330572636,1719581483057,-1515.04,0.00021972,3]
[330572637,1719581483068,-2177.82,0.00021972,3]
[330572638,1719581483078,-4561.78,0.00021972,3]
[330572639,1719581483089,-589.57201623,0.00021972,3]
[330572640,1719581483099,-3661.99,0.00021972,3]
[330572641,1719581483109,-500.0,0.00021972,3]
[330572642,1719581483119,-3137.19,0.00021972,3]
[330572643,1719581483129,-4498.55,0.00021972,3]
[330572644,1719581483139,-500.0,0.00021972,3]
[330572645,1719581483149,-500.0,0.00021972,3]
[330572646,1719581483158,-606.83379628,0.00021972,3]
[330572647,1719581483168,-1040.61,0.00021972,3]
[330572648,1719581483178,-500.0,0.00021972,3]
[330572649,1719581483187,-940.25,0.00021972,3]
[330572650,1719581483197,-4233.18,0.00021972,3]
[330572651,1719581483207,-500.0,0.00021972,3]
[330572652,1719581483216,-1668.83,0.00021972,3]
[330572653,1719581483225,-3429.88,0.00021972,3]
[330572654,1719581483235,-14158.63,0.00021972,3]
[330572655,1719581483245,-500.0,0.00021972,3]
[330572656,1719581483254,-500.0,0.00021972,3]
[330572657,1719581483264,-821.69,0.00021972,3]
[330572658,1719581483275,-500.0,0.00021972,3]
[330572659,1719581483284,-783.72,0.00021972,3]
[330572660,1719581483294,-740.83,0.00021972,3]
[330572661,1719581483303,-500.0,0.00021972,3]
[330572662,1719581483314,-565.45,0.00021972,3]
[330572663,1719581483323,-500.0,0.00021972,3]
[330572664,1719581483332,-1552.89,0.00021972,3]
[330572665,1719581483341,-550.44,0.00021972,3]
[330572666,1719581483351,-3011.43,0.00021972,3]
[330572667,1719581483360,-1631.5,0.00021972,3]
[330572668,1719581483370,-1656.5,0.00021972,3]
[330572669,1719581483379,-500.0,0.00021972,3]
[330572670,1719581483389,-500.0,0.00021972,3]
[330572671,1719581483398,-500.0,0.00021972,3]
[330572672,1719581483411,-4506.2,0.00021972,3]
[330572673,1719581483421,-500.0,0.00021972,3]
[330572674,1719581483430,-976.34,0.00021972,3]
[330572675,1719581483440,-1223.71,0.00021972,3]
[330572676,1719581483451,-2381.26,0.00021972,3]
[330572677,1719581483461,-946.94,0.00021972,3]
[330572678,1719581483470,-500.0,0.00021972,3]
[330572679,1719581483480,-3301.29,0.00021972,3]
[330572680,1719581483493,-500.0,0.00021972,3]
[330572681,1719581483502,-2746.28,0.00021972,3]
[330572682,1719581483513,-500.0,0.00021972,3]
[330572683,1719581483522,-1745.26,0.00021972,3]
[330572684,1719581483531,-1350.21,0.00021972,3]
[330572685,1719581483541,-500.0,0.00021972,3]
[330572686,1719581483551,-2747.84,0.00021972,3]
[330572687,1719581483564,-641.43,0.00021972,3]
[330572688,1719581483573,-815.04,0.00021972,3]
[330572689,1719581483583,-1038.84,0.00021972,3]
[330572690,1719581483592,-500.0,0.00021972,3]
[330572691,1719581483601,-712.23,0.00021972,3]